bitfinex-derivatives/quotes_ETHF0:USTF0_20251211
["timestamp","ask_amount","ask_price","bid_price","bid_amount"]
[1765484968740,2.86850548,3202.3,3202.2,0.15613]
[1765484969431,2.86850548,3202.3,3202.2,2.96693]
[1765484969629,0.00270548,3202.3,3202.2,2.96693]
[1765484972134,1.48270548,3202.3,3202.2,2.96693]
[1765484974339,1.48270548,3202.3,3202.2,4.0835442]
[1765484974340,2.90710548,3202.3,3202.2,4.0835442]
[1765484974541,2.90710548,3202.3,3202.2,5.4411442]
[1765484974741,2.90710548,3202.3,3202.2,0.15613]
[1765484976239,2.90710548,3202.3,3202.2,1.51373]
[1765484976546,2.90710548,3202.3,3202.2,0.15613]
[1765484977347,2.90710548,3202.3,3202.2,1.51373]
[1765484977641,2.90710548,3202.3,3202.2,2.96693]
[1765484978035,2.90710548,3202.3,3202.2,1.51373]
[1765484979844,2.90710548,3202.3,3202.2,2.96693]
[1765484980446,2.90710548,3202.3,3202.2,6.8943442]
[1765484981346,2.90710548,3202.3,3202.2,5.4411442]
[1765484981646,2.90710548,3202.3,3202.2,0.15613]
[1765484989565,2.565,3201.9,3201.8,3.9274142]
[1765484989864,2.565,3201.7,3201.6,1.28768661]
[1765484990553,1.2605,3201.7,3201.6,2.72293661]
[1765484990759,4.4683,3201.9,3201.8,2.71974]
[1765484990960,2.565,3201.9,3201.8,2.71974]
[1765484991359,5.77550548,3202.3,3202.2,1.44063]
[1765484991964,5.77550548,3202.3,3202.2,0.15613]
[1765484992462,5.77550548,3202.3,3202.2,1.44063]
[1765484993261,5.77550548,3202.3,3202.2,0.15613]
[1765484995662,5.77550548,3202.3,3202.2,2.71973]
[1765484997770,5.77550548,3202.3,3202.2,1.44063]
[1765484997978,5.77550548,3202.3,3202.2,2.71973]
[1765484999878,2.56770548,3202.3,3202.2,2.71973]
[1765485000177,2.56770548,3202.3,3202.2,2.65653]
[1765485001275,2.56770548,3202.3,3202.2,0.15613]
[1765485001668,2.4581,3201.8,3201.7,3.2078]
[1765485001975,2.4581,3201.7,3201.6,0.15933661]
[1765485002766,4.08389579,3201.7,3201.6,0.15933661]
[1765485003172,5.6659,3202.2,3201.6,1.6289824]
[1765485003375,2.4581,3201.8,3201.7,5.80695]
[1765485003773,1.1948,3201.8,3201.7,5.80695]
[1765485004277,3.0771,3202.0,3201.9,2.59914]
[1765485006377,1.19750548,3202.3,3202.2,2.59913]
[1765485006586,2.46080548,3202.3,3202.2,2.59913]
[1765485006880,2.46080548,3202.3,3202.2,0.15613]
[1765485007376,2.4581,3201.8,3201.7,3.2078]
[1765485007574,4.08389579,3201.8,3201.7,3.36395]
[1765485008280,4.08389579,3201.8,3201.7,0.15615]
[1765485009282,2.4581,3201.8,3201.7,1.38325]
[1765485009777,4.08389579,3201.8,3201.7,0.15615]
[1765485010176,4.08389579,3201.8,3201.7,1.38325]
[1765485010773,4.08389579,3201.8,3201.7,0.15615]
[1765485011171,4.08389579,3201.8,3201.7,2.59915]
[1765485011375,4.08389579,3201.8,3201.7,1.38325]
[1765485011580,4.08389579,3201.8,3201.7,0.15615]
[1765485012276,4.08389579,3201.8,3201.6,0.00318661]
[1765485012481,2.4581,3201.7,3201.6,0.00318661]
[1765485014576,2.4581,3201.7,3201.6,0.15933661]
[1765485016484,2.431,3201.1,3201.0,0.0046886]
[1765485016786,5.6388,3201.1,3201.0,0.0046886]
[1765485016980,7.26459579,3201.1,3201.0,0.0046886]
[1765485017380,7.26459579,3201.1,3201.0,0.00810062]
[1765485017579,7.26459579,3201.1,3201.0,0.16428062]
[1765485017778,7.26459579,3201.1,3201.0,1.35148062]
[1765485019083,7.26459579,3201.1,3201.0,0.16428062]
[1765485019283,7.26459579,3201.1,3201.0,1.31408062]
[1765485019587,7.26459579,3201.1,3201.0,0.16428062]
[1765485019782,2.4306,3200.6,3199.9,5.5929139]
[1765485019987,0.6899,3201.0,3200.6,2.5099]
[1765485019988,4.4457,3200.7,3200.6,2.5099]
[1765485020186,5.6384,3201.3,3201.2,0.15617]
[1765485020485,5.6384,3201.3,3201.2,2.50987]
[1765485020686,7.26419579,3201.3,3201.2,1.30597]
[1765485020887,7.26419579,3201.3,3201.2,0.15992192]
[1765485021086,7.26419579,3201.3,3201.2,1.30972192]
[1765485021485,7.26419579,3201.3,3201.2,0.15992192]
[1765485025481,7.26419579,3201.3,3201.2,0.15343805]
[1765485025681,3.1205,3201.0,3200.9,0.15564843]
[1765485025884,2.4306,3200.1,3200.0,3.071]
[1765485026086,2.4306,3200.1,3200.0,3.22723]
[1765485026488,2.4306,3200.1,3200.0,2.50993]
[1765485026688,2.4306,3200.1,3200.0,1.3100813]
[1765485027085,2.4306,3200.1,3200.0,2.5139813]
[1765485028592,2.4306,3200.1,3200.0,3.2312813]
[1765485029493,1.2379,3200.1,3200.0,3.2312813]
[1765485029689,2.4306,3200.1,3200.0,3.2312813]
[1765485030392,2.44187609,3200.1,3200.0,3.2312813]
[1765485031492,0.01127609,3200.1,3200.0,3.2312813]
[1765485031895,1.24917609,3200.1,3200.0,3.2312813]
[1765485033293,0.01127609,3200.1,3200.0,6.4390813]
[1765485035194,5.6384,3201.3,3201.2,1.30597]
[1765485035398,7.26419579,3201.3,3201.2,0.15617]
[1765485037302,7.26419579,3201.3,3201.2,1.30597]
[1765485037500,7.26419579,3201.3,3201.2,2.50987]
[1765485037706,7.26419579,3201.3,3201.2,0.15617]
[1765485039701,7.26419579,3201.3,3201.2,4.13566579]
[1765485039702,3.2078,3201.3,3201.2,4.13566579]
[1765485040006,2.4352886,3201.6,3201.5,2.50986]
[1765485040408,0.0046886,3201.6,3201.5,3.22716]
[1765485041806,3.08035738,3201.7,3201.6,2.50985]
[1765485042305,3.2078,3202.1,3202.0,3.22713]
[1765485042607,4.4457,3202.1,3202.0,3.22713]
[1765485042806,1.2379,3202.1,3202.0,3.22713]
[1765485044411,1.24060548,3202.3,3202.2,2.50983]
[1765485044709,2.43330548,3202.3,3202.2,2.50983]
[1765485045804,4.05910127,3202.3,3202.2,0.15613]
[1765485046208,4.05910127,3202.3,3202.2,1.30593]
[1765485047513,2.43330548,3202.3,3202.2,2.50983]
[1765485049608,3.2078,3202.9,3202.8,2.416]
[1765485049812,3.86239579,3203.2,3203.1,0.15608]
[1765485050610,3.86493506,3203.2,3203.1,0.15893085]
[1765485051010,2.23913927,3203.2,3203.1,0.15893085]
[1765485051210,3.86493506,3203.2,3203.1,0.15893085]
[1765485051611,2.2366,3202.2,3202.1,3.36393]
[1765485051809,3.86239579,3202.2,3202.1,0.15613]
[1765485052512,3.86239579,3202.2,3202.1,0.1587189]
[1765485055408,3.86239579,3202.2,3201.6,3.2078]
[1765485055613,2.2366,3201.3,3201.2,4.49397]
[1765485056515,2.2366,3201.3,3201.2,5.62723115]
[1765485059117,2.2366,3201.3,3201.2,2.41943115]
[1765485060619,0.0046886,3201.6,3201.5,3.05576]
[1765485060820,1.1447886,3201.6,3201.5,3.05576]
[1765485061017,2.2412886,3201.6,3201.5,3.05576]
[1765485063818,0.0046886,3201.6,3201.5,3.05576]
[1765485064418,1.1447886,3201.6,3201.5,3.05576]
[1765485064824,0.0046886,3201.6,3201.5,3.05576]
[1765485066727,1.1447886,3201.6,3201.5,3.05576]
[1765485066928,0.0046886,3201.6,3201.5,3.05576]
[1765485067128,3.2078,3202.3,3202.2,2.41603]
[1765485068115,5.4444,3202.7,3202.6,2.2599]
[1765485068315,1.1401,3202.7,3202.6,2.41601]
[1765485068519,2.23963424,3203.0,3202.9,2.41599]
[1765485069022,0.00303424,3203.0,3202.9,2.41599]
[1765485069225,3.843,3204.5,3203.1,2.2599]
[1765485069429,2.2366,3204.5,3204.4,1.28602]
[1765485069627,6.0796,3204.5,3204.4,0.15602]
[1765485070225,1.14301899,3204.5,3204.4,2.41820018]
[1765485070423,2.23951899,3204.5,3204.4,2.41820018]
[1765485070725,2.23951899,3204.5,3204.4,0.15830018]
[1765485070922,6.11671899,3204.5,3204.4,0.15830018]
[1765485071323,5.44731899,3204.5,3204.4,1.28830018]
[1765485071522,5.44731899,3204.5,3204.4,0.15830018]
[1765485071831,5.44731899,3204.5,3204.4,1.28830018]
[1765485072723,5.44731899,3204.5,3204.4,0.15830018]
[1765485074827,5.44731899,3204.5,3204.4,1.28830018]
[1765485075034,5.44731899,3204.5,3204.4,0.15830018]
[1765485075529,6.06431899,3204.5,3204.4,0.15830018]
[1765485079828,2.0596,3203.6,3203.5,1.0493]
[1765485080028,2.0596,3203.5,3203.4,5.3358]
[1765485080430,1.0084,3203.5,3203.4,5.3358]
[1765485080828,1.0084,3203.5,3203.4,5.33947496]
[1765485081535,1.0084,3203.5,3203.4,5.49554496]
[1765485082128,3.2078,3203.9,3203.8,1.20535]
[1765485082129,5.2674,3203.9,3203.8,1.20535]
[1765485082328,5.2674,3203.9,3203.8,2.28405]
[1765485082524,1.0084,3203.9,3203.8,2.28405]
[1765485082730,2.0596,3204.2,3204.1,0.15603]
[1765485086538,2.0596,3203.6,3203.5,1.83696]
[1765485086739,2.0596,3203.6,3203.5,0.15606]
[1765485086940,2.0596,3203.6,3203.5,1.20536]
[1765485087140,1.0084,3203.6,3203.5,2.91566]
[1765485087343,2.0596,3203.6,3203.5,0.15606]
[1765485087838,2.0596,3203.6,3203.5,1.20536]
[1765485088040,2.0596,3203.6,3203.5,2.28406]
[1765485088442,2.0596,3203.6,3203.5,2.91566]
[1765485088840,2.0596,3203.6,3203.5,1.83696]
[1765485089442,2.0596,3203.6,3203.5,2.91566]
[1765485093245,2.0596,3203.6,3203.5,0.15606]
[1765485094351,2.6546,3203.5,3203.4,0.00367496]
[1765485094551,7.44532186,3203.5,3203.4,0.00367496]
[1765485095245,7.44532186,3203.5,3203.4,0.15974496]
[1765485099645,7.44532186,3203.5,3203.4,2.28774496]
[1765485099646,4.2162,3203.5,3203.4,2.28774496]
[1765485099845,3.2078,3203.5,3203.4,2.28774496]
[1765485100045,4.2162,3203.9,3203.8,2.128]
[1765485100247,3.2078,3203.9,3203.8,2.28405]
[1765485100951,5.2674,3204.3,3204.2,1.0493]
[1765485101247,5.2674,3204.3,3204.2,2.128]
[1765485102554,5.2674,3204.3,3204.2,2.28403]
[1765485102744,3.2078,3204.3,3204.2,2.28403]
[1765485102944,2.06251899,3204.5,3204.4,2.28402]
[1765485103452,2.67291899,3204.5,3204.4,0.15602]
[1765485104048,2.06251899,3204.5,3204.4,0.15602]
[1765485104252,2.06251899,3204.5,3204.4,1.20532]
[1765485105449,2.06251899,3204.5,3204.4,2.28402]
[1765485108451,0.00291899,3204.5,3204.4,2.28402]
[1765485111253,3.2078,3204.8,3204.4,2.128]
[1765485111461,4.1702,3205.8,3205.7,2.09255]
[1765485111756,0.9624,3205.8,3205.7,2.09255]
[1765485112152,1.2042,3206.0,3205.9,2.09254]
[1765485112360,0.24403948,3206.0,3205.9,2.09475089]
[1765485112852,1.20643948,3206.0,3205.9,2.09475089]
[1765485113653,1.21721251,3206.0,3205.9,2.09475089]
[1765485114954,2.20701251,3206.0,3205.9,2.09475089]
[1765485115353,1.21721251,3206.0,3205.9,2.09475089]
[1765485115549,2.20701251,3206.0,3205.9,0.15815089]
[1765485116558,2.20701251,3206.0,3205.9,1.12705089]
[1765485117159,2.20701251,3206.0,3205.9,0.15815089]
[1765485117659,2.20701251,3206.0,3205.9,1.12705089]
[1765485118059,2.20701251,3206.0,3205.9,0.15815089]
[1765485118257,2.20701251,3206.0,3205.9,2.09475089]
[1765485118455,0.25481251,3206.0,3205.9,2.09475089]
[1765485118852,2.26671251,3206.0,3205.9,0.15815089]
[1765485119266,2.26671251,3206.0,3205.9,1.23945089]
[1765485120258,2.26671251,3206.0,3205.9,0.15815089]
[1765485121552,2.26671251,3206.0,3205.9,1.23945089]
[1765485121759,3.2078,3207.6,3206.4,2.32262]
[1765485121956,2.7767,3207.0,3206.9,0.1559]
[1765485122158,2.7767,3207.0,3206.9,1.2372]
[1765485122353,2.7767,3207.0,3206.9,2.3226]
[1765485122566,2.8042,3208.0,3207.9,0.15585]
[1765485122758,2.80805396,3208.0,3207.9,0.15585]
[1765485123259,2.8042,3207.0,3206.9,4.445]
[1765485123466,2.8042,3207.0,3206.9,3.3637]
[1765485123669,2.8042,3207.0,3206.9,0.1559]
[1765485125663,2.8042,3207.0,3206.9,1.2372]
[1765485125860,2.8042,3207.0,3206.9,0.1559]
[1765485128260,1.1314,3206.3,3206.2,5.3745]
[1765485129076,2.1809,3206.3,3206.2,5.3745]
[1765485129670,2.8042,3207.0,3206.9,0.1559]
[1765485130472,2.8042,3207.0,3206.9,1.2372]
[1765485130875,1.1314,3206.3,3206.2,5.3745]
[1765485131074,2.8042,3206.5,3206.4,1.23722]
[1765485131262,2.8042,3206.5,3206.4,2.32262]
[1765485131876,2.8042,3207.0,3206.9,1.2372]
[1765485134175,2.8042,3207.0,3206.9,0.1559]
[1765485135774,2.8042,3207.0,3206.9,1.2372]
[1765485136465,2.8042,3207.0,3206.9,0.1559]
[1765485137978,0.6071,3206.5,3206.2,3.2078]
[1765485138179,2.1014,3206.3,3206.2,4.38533]
[1765485138373,2.1014,3206.3,3206.2,5.41443]
[1765485138677,0.6233,3207.0,3206.4,2.1145]
[1765485138870,2.1704,3206.3,3206.2,0.15593]
[1765485139071,2.1704,3206.2,3206.1,0.00468099]
[1765485139272,2.8006,3206.0,3205.9,0.00221089]
[1765485140675,2.8006,3206.0,3205.9,0.15815089]
[1765485141177,2.8006,3206.0,3205.9,1.24395089]
[1765485141586,2.8006,3206.0,3205.9,0.15815089]
[1765485144184,6.0084,3206.0,3205.9,0.15594]
[1765485144486,6.0084,3206.0,3205.0,0.603]
[1765485144487,2.1704,3205.1,3205.0,0.603]
[1765485145080,2.17443749,3205.1,3205.0,0.60583252]
[1765485145588,2.17443749,3205.1,3205.0,0.76182252]
[1765485147478,2.17443749,3205.1,3205.0,0.15882252]
[1765485149784,0.00403749,3205.1,3205.0,2.94052252]
[1765485150595,4.3097,3205.7,3205.6,2.33466]
[1765485151092,5.3782,3205.7,3205.6,2.33466]
[1765485151480,5.38143491,3205.7,3205.6,0.15596]
[1765485159998,0.00323491,3205.7,3205.6,2.33466]
[1765485160202,3.2078,3206.1,3206.0,2.93764]
[1765485160398,4.3097,3206.1,3206.0,2.93764]
[1765485160798,3.2078,3206.1,3206.0,2.93764]
[1765485161199,3.21031541,3206.1,3206.0,2.93764]
[1765485161497,4.31221541,3206.1,3206.0,2.93764]
[1765485162994,5.38071541,3206.1,3206.0,1.84474]
[1765485163712,5.38071541,3206.1,3206.0,0.15594]
[1765485164299,5.38071541,3206.1,3206.0,0.75894]
[1765485166004,2.17291541,3206.1,3206.0,0.75894]
[1765485166207,6.418,3207.4,3206.0,0.75894]
[1765485166208,3.2078,3206.9,3206.8,0.1559]
[1765485166411,0.4,3208.0,3207.2,0.15588]
[1765485166412,5.3782,3207.3,3207.2,0.15588]
[1765485166709,1.0685,3207.0,3206.9,0.1559]
[1765485167009,2.1704,3207.0,3206.9,0.1559]
[1765485167208,2.17310254,3207.0,3206.9,0.1559]
[1765485168013,2.17310254,3207.0,3206.9,1.2417]
[1765485168310,2.17310254,3207.0,3206.9,0.1559]
[1765485175315,2.2636,3206.7,3206.6,0.00468099]
[1765485175517,5.4714,3206.7,3206.6,0.16059099]
[1765485176724,2.2636,3206.1,3206.0,1.872]
[1765485177320,2.2636,3206.1,3206.0,3.0345]
[1765485177520,2.2636,3206.1,3206.0,3.19044]
[1765485177920,2.2636,3206.1,3206.0,2.02794]
[1765485179922,2.2636,3206.5,3206.4,1.31652]
[1765485180121,3.2078,3206.7,3206.6,2.47901]
[1765485180327,0.00468099,3207.3,3206.6,2.47901]
[1765485180328,1.14318099,3207.3,3207.2,2.3231]
[1765485180730,0.00468099,3207.3,3207.2,2.47898]
[1765485181117,3.08042234,3207.5,3207.4,2.47897]
[1765485181326,3.2078,3208.0,3207.9,2.47895]
[1765485181628,3.21079529,3208.0,3207.9,2.47895]
[1765485181829,2.26659529,3208.0,3207.9,1.31645]
[1765485182025,2.26659529,3208.0,3207.9,2.47895]
[1765485182232,1.14149529,3208.0,3207.9,2.47895]
[1765485182425,5.47439529,3208.0,3207.9,0.15585]
[1765485184823,0.00299529,3208.0,3207.9,2.47895]
[1765485185127,2.26659529,3208.0,3207.9,1.31645]
[1765485185330,1.14149529,3208.0,3207.9,2.47895]
[1765485186032,2.26659529,3208.0,3207.9,0.15585]
[1765485186624,0.00299529,3208.0,3207.9,2.47895]
[1765485196538,2.21379529,3208.0,3207.9,0.15585]
[1765485197433,0.00299529,3208.0,3207.9,2.40275]
[1765485197741,3.03226642,3209.5,3207.9,2.40275]
[1765485197742,0.56753327,3209.5,3209.4,0.15577]
[1765485197942,0.6301,3210.0,3209.9,0.15575]
[1765485198149,0.32236043,3210.0,3209.9,0.15575]
[1765485198344,4.3e-07,3210.0,3209.9,0.15575]
[1765485198540,0.6301,3210.5,3210.4,0.15573]
[1765485198845,0.63329451,3210.5,3210.4,0.15573]
[1765485199048,0.63329451,3210.5,3210.4,3.36353]
[1765485199340,0.00319451,3210.5,3210.4,3.73233]
[1765485199848,0.00319451,3210.5,3210.4,7.15729461]
[1765485199849,4.51e-06,3210.5,3210.4,7.15729461]
[1765485200041,4.51e-06,3210.5,3210.4,13.15729461]
[1765485200237,4.51e-06,3210.5,3210.4,13.39815331]
[1765485201139,4.51e-06,3210.5,3210.4,3.9731887]
[1765485201644,4.51e-06,3210.5,3210.4,13.43922077]
[1765485202053,0.6301,3211.5,3211.4,0.64938]
[1765485203144,0.63267079,3211.5,3211.4,0.64938]
[1765485204541,0.00257079,3211.5,3211.4,6.74979529]
[1765485205752,0.90277079,3211.5,3211.4,0.64938]
[1765485207250,3.2078,3212.9,3212.8,0.47481]
[1765485207555,3.2078,3212.9,3211.4,6.15568]
[1765485207556,2.4138,3213.0,3212.9,0.31521]
[1765485207752,0.9002,3213.0,3212.9,0.47481]
[1765485208154,2.4138,3213.5,3213.4,0.29998]
[1765485208355,2.4138,3213.5,3213.4,0.4478641]
[1765485208356,0.00370994,3213.5,3213.4,0.4478641]
[1765485209547,0.00370994,3213.5,3213.4,4.00455442]
[1765485209751,2.41750994,3213.5,3213.4,0.3034641]
[1765485211048,3.93150994,3213.5,3213.4,0.1590641]
[1765485211450,0.9002,3213.0,3212.5,0.00467333]
[1765485211760,3.0276,3212.6,3212.5,0.00467333]
[1765485212353,0.9002,3213.0,3212.7,0.15561]
[1765485212554,0.9002,3213.0,3212.5,0.00696213]
[1765485212555,0.9002,3213.0,3212.9,1.4496]
[1765485212753,3.9278,3213.0,3212.9,1.60521]
[1765485212953,3.9278,3213.0,3212.9,0.15561]
[1765485215954,3.2078,3213.4,3213.3,2.9333]
[1765485216161,3.2078,3214.6,3214.5,0.15553]
[1765485216366,3.0276,3214.9,3214.5,3.2078]
[1765485216655,3.0276,3214.9,3214.8,3.2078]
[1765485217151,4.108,3215.5,3214.8,4.0613]
[1765485217352,4.108,3215.5,3215.4,0.15548]
[1765485217353,3.93057322,3215.5,3215.4,0.15548]
[1765485217554,1.51637322,3215.5,3215.4,0.15548]
[1765485217753,0.00277322,3215.5,3215.4,1.60508]
[1765485217954,3.03037322,3215.5,3215.4,0.15548]
[1765485221353,3.03037322,3215.5,3215.4,3.94228]
[1765485221354,0.00277322,3215.5,3215.4,3.94228]
[1765485222052,0.00277322,3215.5,3215.4,3.08878]
[1765485222254,3.0276,3214.9,3214.8,0.15826648]
[1765485223253,3.0276,3214.3,3214.2,0.00466599]
[1765485223564,3.0276,3214.3,3214.2,0.16020599]
[1765485224467,1.5136,3214.3,3214.2,1.61273593]
[1765485224668,1.5136,3214.3,3214.2,0.16313593]
[1765485224669,3.0276,3214.3,3214.2,0.16313593]
[1765485226470,3.0276,3214.3,3212.9,9.301]
[1765485226471,3.0276,3213.3,3213.2,3.36339]
[1765485227064,1.5136,3213.6,3213.5,1.60518]
[1765485227263,3.0276,3213.6,3213.5,1.60518]
[1765485227466,3.0276,3213.6,3213.5,1.6086931]
[1765485227663,3.0276,3213.6,3213.5,0.1590931]
[1765485228265,0.90297322,3215.5,3214.9,1.4496]
[1765485228461,0.90297322,3215.5,3215.4,0.15548]
[1765485228462,2.41657322,3215.5,3215.4,0.15548]
[1765485228661,3.93057322,3215.5,3215.4,0.15548]
[1765485229060,0.90297322,3215.5,3215.4,0.15548]
[1765485229361,0.00277322,3215.5,3215.4,3.31928]
[1765485230166,3.27787322,3215.5,3215.4,0.15548]
[1765485230667,0.00277322,3215.5,3215.4,1.72728]
[1765485230868,3.27787322,3215.5,3215.4,0.15548]
[1765485232067,3.27787322,3215.5,3215.2,3.2078]
[1765485232068,3.2751,3215.3,3215.2,3.2078]
[1765485232875,3.2751,3215.3,3215.2,3.36329]
[1765485234661,3.2751,3214.7,3214.6,3.2078]
[1765485235574,3.2751,3214.7,3214.6,3.36332]
[1765485240576,3.27976599,3215.0,3214.9,1.72731]
[1765485240769,1.65316599,3215.0,3214.9,1.72731]
[1765485241372,0.00466599,3215.0,3214.9,3.31931]
[1765485241770,0.00277322,3215.5,3215.4,3.1638]
[1765485242581,3.27787322,3215.5,3215.4,0.15548]
[1765485242875,4.25947322,3215.5,3215.4,0.15548]
[1765485243081,3.27787322,3215.5,3215.4,0.15548]
[1765485243272,0.00277322,3215.5,3215.4,3.31928]
[1765485243472,3.27787322,3215.5,3215.4,0.15548]
[1765485243979,0.97127322,3215.5,3215.0,7.3807]
[1765485244391,1.65127322,3215.5,3215.4,1.5718]
[1765485244583,2.47743192,3215.5,3215.4,1.5718]
[1765485244787,2.47743192,3215.5,3215.4,3.1638]
[1765485244981,2.47743192,3215.5,3215.4,6.3716]
[1765485245384,4.10403192,3215.5,3215.4,3.2078]
[1765485245685,0.82893192,3215.5,3215.4,6.52708]
[1765485246388,4.10403192,3215.5,3215.4,3.36328]
[1765485246582,5.06573192,3215.5,3215.4,3.36328]
[1765485247082,0.82893192,3215.5,3215.4,6.52708]
[1765485247381,3.27787322,3215.5,3215.4,3.36328]
[1765485248583,4.23967322,3215.5,3215.4,3.36328]
[1765485248779,5.06694408,3215.5,3215.4,3.36328]
[1765485249179,8.27474408,3215.5,3215.4,0.15548]
[1765485250586,3.2751,3215.0,3214.9,3.2078]
[1765485250782,3.2751,3215.0,3214.9,4.7796]
[1765485250980,1.6485,3215.0,3214.9,6.3716]
[1765485251583,1.6485,3215.0,3214.9,6.52711]
[1765485251984,3.2751,3215.0,3214.9,4.93511]
[1765485252179,3.2751,3215.0,3214.9,3.36331]
[1765485252381,4.0476,3215.0,3214.9,3.36331]
[1765485252577,4.0476,3215.0,3214.5,3.2078]
[1765485252578,3.2751,3214.6,3214.5,3.2078]
[1765485252989,1.6485,3215.0,3214.9,3.31931]
[1765485253491,3.2751,3215.0,3214.9,1.72731]
[1765485254080,4.17237322,3215.5,3214.9,1.72731]
[1765485254081,0.00277322,3215.5,3215.4,3.31928]
[1765485256589,3.2078,3215.9,3215.8,3.31926]
[1765485256788,6.4829,3215.9,3215.8,1.72726]
[1765485256987,6.4829,3215.9,3215.8,0.15546]
[1765485257183,6.4829,3215.9,3215.8,1.72726]
[1765485257588,4.85978312,3215.9,3215.8,3.321503]
[1765485257779,6.48638312,3215.9,3215.8,1.729503]
[1765485257984,6.48638312,3215.9,3215.8,0.157703]
[1765485258182,5.06748312,3215.9,3215.8,3.6635]
[1765485258382,6.81388312,3215.9,3215.8,1.8912]
[1765485258587,6.81388312,3215.9,3215.8,2.04666]
[1765485258792,0.00348312,3215.9,3215.8,3.81896]
[1765485259190,0.00348312,3215.9,3215.8,3.82225797]
[1765485260292,1.81268312,3215.9,3215.8,3.82225797]
[1765485261192,3.63258312,3215.9,3215.8,2.04995797]
[1765485261394,1.81268312,3215.9,3215.8,3.79595797]
[1765485261590,3.63258312,3215.9,3215.8,2.04995797]
[1765485261796,3.63258312,3215.9,3215.8,0.15875797]
[1765485261984,1.81268312,3215.9,3215.8,3.77735797]
[1765485262189,0.00348312,3215.9,3215.8,3.77735797]
[1765485263494,0.00348312,3215.9,3215.8,0.15875797]
[1765485263495,3.63258312,3215.9,3215.8,0.15875797]
[1765485264387,3.63258312,3215.9,3215.8,2.03135797]
[1765485264589,0.00348312,3215.9,3215.8,3.77735797]
[1765485264991,3.63258312,3215.9,3215.8,3.77735797]
[1765485265195,3.63258312,3215.9,3215.8,2.03135797]
[1765485265396,0.00348312,3215.9,3215.8,3.77735797]
[1765485267494,3.63258312,3215.9,3215.8,2.03135797]
[1765485267691,3.63258312,3215.9,3215.8,0.15875797]
[1765485268093,0.00348312,3215.9,3215.8,3.77735797]
[1765485269397,1.81268312,3215.9,3215.8,3.77735797]
[1765485270196,3.63258312,3215.9,3215.8,2.03135797]
[1765485270997,3.63258312,3215.9,3215.8,0.15875797]
[1765485273002,3.63258312,3215.9,3215.3,3.2078]
[1765485273003,3.6291,3215.4,3215.3,3.2078]
[1765485273999,3.6291,3215.4,3215.3,3.21171584]
[1765485274700,3.6291,3215.4,3215.3,3.34702271]
[1765485274902,6.8369,3215.4,3215.3,0.15940584]
[1765485275301,3.63258312,3215.9,3215.8,0.15546]
[1765485276498,3.63258312,3215.9,3215.8,2.02806]
[1765485277001,3.63258312,3215.9,3215.8,0.15546]
[1765485277596,0.00348312,3215.9,3215.8,3.77406]
[1765485278000,1.81268312,3215.9,3215.8,3.77406]
[1765485279309,3.63258312,3215.9,3215.8,2.02806]
[1765485279903,3.63258312,3215.9,3215.8,0.15546]
[1765485282412,3.6291,3215.4,3215.3,0.00391584]
[1765485282609,6.8369,3215.4,3215.3,0.00391584]
[1765485284213,6.8369,3215.4,3215.3,1.584e-05]
[1765485284410,1.8199,3214.6,3214.5,3.2078]
[1765485284611,3.6291,3214.6,3214.5,3.36333]
[1765485284812,3.6291,3214.6,3214.5,0.15553]
[1765485285405,3.6291,3214.6,3214.5,0.15786701]
[1765485286107,3.6291,3214.6,3214.3,0.00466599]
[1765485286307,3.6291,3214.2,3213.7,3.2078]
[1765485286810,1.8092,3213.8,3213.7,6.98197]
[1765485287010,1.8092,3213.8,3213.7,5.23597]
[1765485287211,1.8092,3214.0,3213.9,2.02816]
[1765485287403,3.6291,3214.0,3213.9,0.15556]
[1765485288510,3.6291,3213.8,3213.7,3.2106645]
[1765485288711,3.6291,3213.8,3213.7,0.0028645]
[1765485289303,1.8092,3213.8,3213.7,0.0028645]
[1765485289510,3.4773,3213.8,3213.7,0.0028645]
[1765485291518,3.3449,3213.5,3213.4,0.00466599]
[1765485291911,1.6768,3213.5,3213.4,3.37216599]
[1765485292416,3.3483546,3213.5,3213.4,0.00763529]
[1765485292917,0.0034546,3213.5,3213.4,3.53071529]
[1765485293614,1.6802546,3213.5,3213.4,3.53071529]
[1765485293807,3.3483546,3213.5,3213.4,0.16321529]
[1765485294614,1.6802546,3213.5,3213.4,3.53071529]
[1765485294816,0.0034546,3213.5,3213.4,3.53071529]
[1765485295117,3.3483546,3213.5,3213.4,0.16321529]
[1765485298214,0.314,3212.9,3212.8,0.15561]
[1765485298416,3.2078,3213.0,3212.8,3.3675]
[1765485298620,0.157,3213.3,3213.2,3.52309]
[1765485298915,3.2078,3213.4,3213.3,3.52309]
[1765485299118,3.2078,3213.4,3213.3,3.52529883]
[1765485300922,3.3648,3213.4,3213.3,3.52529883]
[1765485301322,4.0258,3213.4,3213.3,3.52529883]
[1765485301521,3.3648,3213.4,3213.3,3.52529883]
[1765485301723,3.2078,3213.4,3213.3,3.52529883]
[1765485301917,0.0034546,3213.5,3213.4,3.52308]
[1765485304619,1.2313546,3213.5,3213.4,0.15558]
[1765485306624,1.1344,3213.4,3213.3,0.00220883]
[1765485306923,1.0834,3212.6,3212.5,1.26942]
[1765485307127,3.7495,3212.6,3212.5,4.63692]
[1765485307734,4.2727,3212.6,3212.5,1.26942]
[1765485308035,4.2727,3212.6,3212.5,1.2720432]
[1765485308229,3.2078,3212.6,3212.5,4.6395432]
[1765485309233,3.6953,3213.1,3213.0,2.7207]
[1765485309531,3.6953,3213.1,3213.0,4.3397]
[1765485309729,3.2078,3213.1,3213.0,4.4953]
[1765485312328,0.4875,3213.3,3213.2,3.52309]
[1765485312526,3.6439546,3213.5,3213.4,1.7485]
[1765485312726,0.8654,3213.4,3213.3,0.15558]
[1765485312928,0.4327,3213.4,3213.3,3.52308]
[1765485313229,3.6439546,3213.5,3213.4,3.52308]
[1765485313431,3.2112546,3213.5,3213.4,3.52308]
[1765485313631,3.6257546,3213.5,3213.4,1.90408]
[1765485313928,4.0402546,3213.5,3213.4,1.90408]
[1765485314130,3.2112546,3213.5,3213.4,3.54558]
[1765485314334,3.6113546,3213.5,3213.4,3.54558]